[Event "MČR juniorů a juniorek v rapid šachu 2023"]
[Site "Czech Republic"]
[Date "2023.09.23"]
[Round "6.5"]
[White "Steinbauer, Sebastian"]
[Black "Nagy, Ladislav"]
[Result "1-0"]
[TimeControl "20 min + 5 sec per move"]
[WhiteFideId "399272"]
[BlackFideId "374300"]
[WhiteElo "1880"]
[BlackElo "2089"]

1. e4 {[%clk 00:20:08]} {[%emt 00:00:02]} c5 {[%clk 00:20:08]} {[%emt
00:00:02]} 2. Nf3 {[%clk 00:20:12]} {[%emt 00:00:02]} e6 {[%clk 00:20:11]}
{[%emt 00:00:02]} 3. d4 {[%clk 00:20:15]} {[%emt 00:00:02]} cxd4 {[%clk
00:20:14]} {[%emt 00:00:02]} 4. Nxd4 {[%clk 00:20:19]} a6 {[%clk 00:20:14]}
{[%emt 00:00:05]} 5. Nc3 {[%clk 00:20:17]} {[%emt 00:00:07]} Qc7 {[%clk
00:20:00]} {[%emt 00:00:19]} 6. Bd3 {[%clk 00:20:08]} {[%emt 00:00:14]} b5
{[%clk 00:19:48]} {[%emt 00:00:17]} 7. a3 {[%clk 00:19:39]} {[%emt 00:00:34]}
Bb7 {[%clk 00:19:43]} {[%emt 00:00:09]} 8. O-O {[%clk 00:19:01]} {[%emt
00:00:43]} Nf6 {[%clk 00:18:57]} {[%emt 00:00:51]} 9. Bg5 {[%clk 00:18:39]}
{[%emt 00:00:27]} Be7 {[%clk 00:17:07]} {[%emt 00:01:55]} 10. Re1 {[%clk
00:18:18]} {[%emt 00:00:26]} Bd6 {[%clk 00:12:53]} {[%emt 00:04:18]} 11. Nf3
{[%clk 00:17:08]} {[%emt 00:01:16]} h6 {[%clk 00:11:18]} {[%emt 00:01:40]} 12.
Bxf6 {[%clk 00:16:34]} {[%emt 00:00:39]} gxf6 {[%clk 00:11:21]} {[%emt
00:00:02]} 13. Bxb5 {[%clk 00:16:34]} {[%emt 00:00:06]} Nc6 {[%clk 00:10:19]}
{[%emt 00:01:06]} 14. Bxc6 {[%clk 00:15:50]} {[%emt 00:00:49]} Bxc6 {[%clk
00:10:09]} {[%emt 00:00:16]} 15. Qd4 {[%clk 00:15:51]} {[%emt 00:00:03]} Be5
{[%clk 00:08:07]} {[%emt 00:02:07]} 16. Nxe5 {[%clk 00:15:54]} {[%emt
00:00:02]} fxe5 {[%clk 00:08:11]} 17. Qe3 {[%clk 00:15:18]} {[%emt 00:00:41]}
Rg8 {[%clk 00:05:51]} {[%emt 00:02:25]} 18. Qxh6 {[%clk 00:13:15]} {[%emt
00:02:09]} O-O-O {[%clk 00:05:45]} {[%emt 00:00:10]} 19. Qe3 {[%clk 00:12:46]}
{[%emt 00:00:33]} f5 {[%clk 00:05:32]} {[%emt 00:00:18]} 20. f3 {[%clk
00:12:35]} Rg7 {[%clk 00:04:04]} {[%emt 00:01:49]} 21. a4 {[%emt 00:00:28]}
Rdg8 {[%clk 00:03:49]} {[%emt 00:00:15]} 22. Re2 {[%clk 00:12:21]} {[%emt
00:00:02]} fxe4 {[%clk 00:01:54]} {[%emt 00:02:00]} 23. Nxe4 {[%clk 00:12:14]}
{[%emt 00:00:12]} d5 {[%clk 00:01:02]} {[%emt 00:00:57]} 24. Ng3 {[%clk
00:12:15]} {[%emt 00:00:03]} Rg5 {[%clk 00:00:54]} {[%emt 00:00:13]} 25. b4
{[%clk 00:10:28]} {[%emt 00:01:52]} d4 {[%clk 00:00:23]} {[%emt 00:00:36]} 26.
Qd3 {[%clk 00:10:28]} {[%emt 00:00:04]} Qb7 {[%clk 00:00:12]} {[%emt 00:00:18]}
27. Ne4 {[%clk 00:10:12]} {[%emt 00:00:21]} Bxe4 {[%clk 00:00:10]} {[%emt
00:00:07]} 28. Qxe4 {[%clk 00:10:13]} {[%emt 00:00:04]} Qxb4 {[%clk 00:00:10]}
{[%emt 00:00:05]} 29. Qa8+ {[%clk 00:10:16]} {[%emt 00:00:02]} Kd7 {[%clk
00:00:11]} {[%emt 00:00:05]} 30. Qxa6 {[%clk 00:09:24]} {[%emt 00:00:57]} Ke7
{[%clk 00:00:15]} 31. Qd3 {[%clk 00:09:01]} {[%emt 00:00:28]} Qb2 {[%clk
00:00:14]} {[%emt 00:00:07]} 32. Rae1 {[%clk 00:08:57]} {[%emt 00:00:09]} Rc8
{[%clk 00:00:10]} {[%emt 00:00:09]} 33. Qh7+ {[%clk 00:08:52]} {[%emt
00:00:09]} Kd6 {[%clk 00:00:13]} {[%emt 00:00:02]} 34. f4 {[%clk 00:08:42]}
{[%emt 00:00:16]} Rf5 {[%clk 00:00:13]} {[%emt 00:00:05]} 35. fxe5+ {[%clk
00:08:42]} {[%emt 00:00:05]} Kc6 {[%clk 00:00:12]} {[%emt 00:00:06]} 36. Qe7
{[%clk 00:08:40]} {[%emt 00:00:06]} Qa2 {[%clk 00:00:11]} {[%emt 00:00:07]} 37.
c3 {[%clk 00:08:17]} {[%emt 00:00:29]} Qd5 {[%clk 00:00:06]} {[%emt 00:00:09]}
38. cxd4 Qxd4+ {[%clk 00:00:10]} 39. Kh1 {[%clk 00:07:32]} Kb6 {[%clk
00:00:00]} {[%emt 00:00:10]} 1-0

[Event "MČR juniorů a juniorek v rapid šachu 2023"]
[Site "Czech Republic"]
[Date "2023.09.23"]
[Round "6.6"]
[White "Prazak, Daniel"]
[Black "Simunek, Jakub Simon"]
[Result "1-0"]
[TimeControl "20 min + 5 sec per move"]
[WhiteFideId "23709456"]
[BlackFideId "23709464"]
[WhiteElo "2029"]
[BlackElo "1843"]

1. d4 {[%clk 00:20:09]} d5 {[%clk 00:20:09]} {[%emt 00:00:01]} 2. Nf3 {[%clk
00:19:52]} {[%emt 00:00:22]} Nf6 {[%clk 00:20:13]} {[%emt 00:00:02]} 3. Bf4
{[%clk 00:18:47]} {[%emt 00:01:09]} c5 {[%clk 00:20:17]} {[%emt 00:00:02]} 4.
e3 {[%clk 00:18:51]} Nc6 {[%clk 00:20:20]} {[%emt 00:00:02]} 5. Nbd2 {[%clk
00:18:54]} {[%emt 00:00:02]} Qb6 {[%clk 00:20:23]} {[%emt 00:00:02]} 6. dxc5
{[%clk 00:17:54]} {[%emt 00:01:06]} Qxb2 {[%clk 00:20:27]} {[%emt 00:00:02]} 7.
Rb1 {[%clk 00:17:15]} {[%emt 00:00:43]} Qc3 {[%clk 00:20:28]} {[%emt 00:00:03]}
8. Bb5 {[%clk 00:17:17]} {[%emt 00:00:02]} g6 {[%clk 00:20:12]} {[%emt
00:00:22]} 9. Ne5 {[%clk 00:16:09]} {[%emt 00:01:13]} Qxc5 {[%clk 00:20:01]}
{[%emt 00:00:16]} 10. c4 {[%clk 00:16:02]} {[%emt 00:00:12]} Bf5 {[%clk
00:15:35]} {[%emt 00:04:32]} 11. O-O {[%clk 00:13:47]} {[%emt 00:02:20]} Bxb1
{[%clk 00:13:40]} {[%emt 00:02:00]} 12. Qxb1 {[%clk 00:13:51]} Bg7 {[%clk
00:12:21]} {[%emt 00:01:25]} 13. cxd5 {[%clk 00:07:17]} {[%emt 00:06:38]} Nxd5
{[%clk 00:08:25]} {[%emt 00:04:01]} 14. Ne4 {[%clk 00:07:02]} {[%emt 00:00:20]}
Qb6 {[%clk 00:07:58]} {[%emt 00:00:32]} 15. Qb3 {[%clk 00:06:44]} {[%emt
00:00:23]} Rd8 {[%clk 00:06:16]} {[%emt 00:01:47]} 16. Nc4 {[%clk 00:06:38]}
{[%emt 00:00:11]} Nxf4 {[%clk 00:04:51]} {[%emt 00:01:30]} 17. Nxb6 {[%clk
00:06:41]} {[%emt 00:00:02]} axb6 {[%clk 00:04:41]} {[%emt 00:00:16]} 18. exf4
{[%clk 00:06:44]} O-O {[%clk 00:04:45]} {[%emt 00:00:02]} 19. Bxc6 {[%clk
00:06:41]} {[%emt 00:00:08]} bxc6 {[%clk 00:04:48]} {[%emt 00:00:01]} 20. Qxb6
{[%clk 00:06:45]} {[%emt 00:00:02]} 1-0

[Event "MČR juniorů a juniorek v rapid šachu 2023"]
[Site "Czech Republic"]
[Date "2023.09.23"]
[Round "6.7"]
[White "Martinkovic, Adam"]
[Black "Stejskal, Michal"]
[Result "0-1"]
[TimeControl "20 min + 5 sec per move"]
[WhiteFideId "23728019"]
[BlackFideId "398195"]
[WhiteElo "1807"]
[BlackElo "1959"]

1. c4 {[%clk 00:20:08]} {[%emt 00:00:01]} e5 {[%clk 00:20:08]} {[%emt
00:00:02]} 2. Nc3 {[%clk 00:20:11]} Nc6 {[%clk 00:20:12]} {[%emt 00:00:02]} 3.
g3 {[%clk 00:20:15]} f5 {[%clk 00:20:16]} {[%emt 00:00:02]} 4. Bg2 {[%clk
00:20:18]} Nf6 {[%clk 00:20:19]} {[%emt 00:00:02]} 5. e3 {[%clk 00:20:22]} d5
{[%clk 00:20:23]} {[%emt 00:00:02]} 6. Nxd5 {[%clk 00:19:26]} {[%emt 00:01:00]}
Nxd5 {[%clk 00:20:21]} {[%emt 00:00:07]} 7. cxd5 {[%clk 00:19:29]} {[%emt
00:00:02]} Nb4 {[%clk 00:20:24]} {[%emt 00:00:02]} 8. d4 {[%clk 00:18:21]}
{[%emt 00:01:13]} e4 {[%clk 00:20:27]} {[%emt 00:00:02]} 9. Ne2 {[%clk
00:17:55]} {[%emt 00:00:31]} Nd3+ {[%clk 00:20:27]} {[%emt 00:00:05]} 10. Kf1
{[%clk 00:17:54]} {[%emt 00:00:05]} Qxd5 {[%clk 00:20:01]} {[%emt 00:00:32]} 11.
Nf4 {[%clk 00:16:52]} {[%emt 00:01:08]} Nxf4 {[%clk 00:20:01]} {[%emt
00:00:04]} 12. exf4 {[%clk 00:16:55]} {[%emt 00:00:01]} Bd7 {[%clk 00:20:00]}
{[%emt 00:00:07]} 13. Be3 {[%clk 00:16:52]} {[%emt 00:00:07]} Bb5+ {[%clk
00:19:57]} {[%emt 00:00:08]} 14. Kg1 {[%clk 00:16:52]} {[%emt 00:00:05]} Bd6
{[%clk 00:19:57]} {[%emt 00:00:05]} 15. Bf1 {[%clk 00:16:18]} {[%emt 00:00:39]}
O-O-O {[%clk 00:19:57]} {[%emt 00:00:05]} 16. Kg2 {[%clk 00:15:03]} {[%emt
00:01:20]} Bxf1+ {[%clk 00:19:41]} {[%emt 00:00:21]} 17. Rxf1 {[%clk 00:15:02]}
{[%emt 00:00:06]} h6 {[%clk 00:19:44]} {[%emt 00:00:02]} 18. h4 {[%clk
00:15:01]} {[%emt 00:00:07]} Rdg8 {[%clk 00:19:43]} {[%emt 00:00:05]} 19. Qa4
{[%clk 00:14:23]} {[%emt 00:00:42]} a6 {[%clk 00:19:20]} {[%emt 00:00:29]} 20.
Rac1 {[%clk 00:14:16]} {[%emt 00:00:12]} g5 {[%clk 00:19:03]} {[%emt 00:00:22]}
21. fxg5 {[%clk 00:12:49]} {[%emt 00:01:32]} hxg5 {[%clk 00:19:06]} {[%emt
00:00:02]} 22. hxg5 {[%clk 00:12:50]} {[%emt 00:00:04]} f4 {[%clk 00:19:09]}
{[%emt 00:00:03]} 23. gxf4 {[%clk 00:10:58]} {[%emt 00:01:56]} Qf5 {[%clk
00:19:12]} {[%emt 00:00:02]} 24. f3 {[%clk 00:10:29]} {[%emt 00:00:34]} Qh3+
{[%clk 00:19:15]} {[%emt 00:00:02]} 25. Kf2 {[%clk 00:10:26]} {[%emt 00:00:08]}
Qxf3+ {[%clk 00:19:18]} {[%emt 00:00:02]} 26. Ke1 {[%clk 00:10:22]} {[%emt
00:00:08]} Qxe3+ {[%clk 00:19:21]} {[%emt 00:00:02]} 27. Kd1 {[%clk 00:10:20]}
{[%emt 00:00:05]} Bxf4 {[%clk 00:19:12]} {[%emt 00:00:16]} 28. Qc2 {[%clk
00:09:07]} {[%emt 00:01:18]} Qxc1+ {[%clk 00:19:10]} {[%emt 00:00:06]} 29. Qxc1
{[%clk 00:09:10]} {[%emt 00:00:02]} Bxc1 {[%clk 00:19:13]} {[%emt 00:00:02]} 30.
Kxc1 {[%clk 00:09:13]} {[%emt 00:00:03]} Rxg5 {[%clk 00:19:16]} {[%emt
00:00:02]} 0-1

[Event "MČR juniorů a juniorek v rapid šachu 2023"]
[Site "Czech Republic"]
[Date "2023.09.23"]
[Round "6.8"]
[White "Garabik, Marek"]
[Black "Dolensky, Filip"]
[Result "0-1"]
[TimeControl "20 min + 5 sec per move"]
[WhiteFideId "23717742"]
[BlackFideId "399000"]
[WhiteElo "1787"]
[BlackElo "1942"]

1. e4 {[%clk 00:20:07]} {[%emt 00:00:02]} c5 {[%clk 00:20:09]} {[%emt
00:00:02]} 2. Nc3 {[%clk 00:20:11]} e6 {[%clk 00:20:09]} {[%emt 00:00:05]} 3.
f4 {[%clk 00:20:10]} {[%emt 00:00:06]} a6 {[%clk 00:20:12]} {[%emt 00:00:02]} 4.
Nf3 {[%clk 00:20:13]} {[%emt 00:00:02]} b5 {[%clk 00:20:08]} {[%emt 00:00:08]}
5. d3 {[%clk 00:20:11]} {[%emt 00:00:07]} Bb7 {[%clk 00:20:12]} {[%emt
00:00:02]} 6. g3 {[%clk 00:19:28]} {[%emt 00:00:48]} d6 {[%clk 00:20:15]}
{[%emt 00:00:02]} 7. Bg2 {[%clk 00:19:32]} {[%emt 00:00:01]} Nf6 {[%clk
00:20:18]} {[%emt 00:00:02]} 8. O-O {[%clk 00:19:33]} {[%emt 00:00:04]} Be7
{[%clk 00:20:21]} {[%emt 00:00:02]} 9. h3 {[%clk 00:19:35]} {[%emt 00:00:03]}
Nbd7 {[%clk 00:20:13]} {[%emt 00:00:13]} 10. Be3 {[%clk 00:19:36]} {[%emt
00:00:04]} Nb6 {[%clk 00:20:10]} {[%emt 00:00:08]} 11. Bf2 {[%clk 00:19:20]}
{[%emt 00:00:20]} Qc7 {[%clk 00:20:09]} {[%emt 00:00:06]} 12. Ne2 {[%clk
00:18:51]} {[%emt 00:00:35]} d5 {[%clk 00:20:00]} {[%emt 00:00:15]} 13. e5
{[%clk 00:18:48]} {[%emt 00:00:07]} Nfd7 {[%clk 00:20:04]} 14. d4 {[%clk
00:18:11]} {[%emt 00:00:42]} O-O-O {[%clk 00:18:16]} {[%emt 00:01:52]} 15. c3
{[%clk 00:17:12]} {[%emt 00:01:04]} Kb8 {[%clk 00:18:20]} {[%emt 00:00:02]} 16.
Rc1 {[%clk 00:17:01]} {[%emt 00:00:15]} Rc8 {[%clk 00:18:16]} {[%emt 00:00:10]}
17. Qd2 {[%clk 00:17:02]} {[%emt 00:00:04]} Ka8 {[%clk 00:17:30]} {[%emt
00:00:50]} 18. Kh2 {[%clk 00:15:08]} {[%emt 00:02:00]} h6 {[%clk 00:17:31]}
{[%emt 00:00:04]} 19. Be3 {[%clk 00:14:37]} {[%emt 00:00:36]} Nc4 {[%clk
00:17:27]} {[%emt 00:00:10]} 20. Qd3 {[%clk 00:14:17]} {[%emt 00:00:24]} Nxb2
{[%clk 00:17:29]} {[%emt 00:00:03]} 21. Qb1 {[%clk 00:14:19]} {[%emt 00:00:03]}
Nc4 {[%clk 00:17:29]} {[%emt 00:00:05]} 22. Bf2 {[%clk 00:14:22]} {[%emt
00:00:02]} Ndb6 {[%clk 00:17:09]} {[%emt 00:00:25]} 23. Rfd1 {[%clk 00:13:50]}
{[%emt 00:00:37]} Na3 {[%clk 00:15:48]} {[%emt 00:01:26]} 24. Qd3 {[%clk
00:13:53]} {[%emt 00:00:02]} Nac4 {[%clk 00:15:39]} {[%emt 00:00:15]} 25. Qb1
{[%clk 00:12:42]} {[%emt 00:01:16]} g6 {[%clk 00:15:00]} {[%emt 00:00:44]} 26.
Nd2 {[%clk 00:12:33]} {[%emt 00:00:13]} Na3 {[%clk 00:14:21]} {[%emt 00:00:45]}
27. Qd3 {[%clk 00:12:28]} {[%emt 00:00:09]} Na4 {[%clk 00:13:55]} {[%emt
00:00:31]} 28. Qe3 {[%clk 00:10:44]} {[%emt 00:01:50]} Nb2 {[%clk 00:12:58]}
{[%emt 00:00:58]} 29. Rg1 {[%clk 00:10:24]} {[%emt 00:00:28]} c4 {[%clk
00:11:08]} {[%emt 00:01:56]} 30. Nb1 {[%clk 00:09:48]} {[%emt 00:00:41]} Qa5
{[%clk 00:10:03]} {[%emt 00:01:10]} 31. Nxa3 {[%emt 00:01:34]} Qxa3 {[%clk
00:10:04]} {[%emt 00:00:01]} 32. Rb1 {[%clk 00:08:17]} {[%emt 00:00:09]} Nd3
{[%clk 00:09:23]} {[%emt 00:00:44]} 33. Rgd1 {[%clk 00:05:20]} {[%emt
00:03:05]} Rc7 {[%clk 00:08:35]} {[%emt 00:00:51]} 34. Nc1 {[%clk 00:04:21]}
{[%emt 00:01:05]} Nxf2 {[%clk 00:08:32]} {[%emt 00:00:08]} 35. Qxf2 {[%clk
00:04:24]} {[%emt 00:00:02]} Qxc3 {[%clk 00:08:32]} {[%emt 00:00:05]} 36. Ne2
{[%clk 00:03:55]} {[%emt 00:00:35]} Qa5 {[%clk 00:08:33]} {[%emt 00:00:04]} 37.
g4 {[%clk 00:03:49]} {[%emt 00:00:11]} h5 {[%clk 00:08:36]} {[%emt 00:00:02]}
38. g5 {[%clk 00:03:46]} {[%emt 00:00:08]} Rhc8 {[%clk 00:08:34]} {[%emt
00:00:07]} 39. a4 {[%clk 00:02:51]} {[%emt 00:01:00]} b4 {[%clk 00:08:37]}
{[%emt 00:00:03]} 40. Rdc1 {[%clk 00:02:33]} {[%emt 00:00:22]} c3 {[%clk
00:08:16]} {[%emt 00:00:26]} 41. Rc2 {[%clk 00:02:32]} {[%emt 00:00:05]} Bc6
{[%clk 00:08:07]} {[%emt 00:00:14]} 42. Nc1 {[%clk 00:02:18]} {[%emt 00:00:20]}
Qb6 {[%clk 00:06:32]} {[%emt 00:01:40]} 43. Rxc3 {[%clk 00:01:36]} {[%emt
00:00:47]} Bxa4 {[%clk 00:06:34]} {[%emt 00:00:03]} 44. Rxc7 {[%clk 00:01:38]}
{[%emt 00:00:03]} Rxc7 {[%clk 00:06:37]} {[%emt 00:00:02]} 45. Nd3 {[%clk
00:01:29]} {[%emt 00:00:07]} Rc2 {[%clk 00:06:09]} {[%emt 00:00:37]} 46. Qe3
{[%clk 00:01:06]} {[%emt 00:00:30]} a5 {[%clk 00:05:55]} {[%emt 00:00:20]} 47.
Kg3 {[%clk 00:00:45]} {[%emt 00:00:25]} Rc3 {[%clk 00:05:56]} {[%emt 00:00:05]}
48. Bf1 {[%clk 00:00:40]} {[%emt 00:00:10]} Bb5 {[%clk 00:05:31]} {[%emt
00:00:30]} 49. Kh4 {[%clk 00:00:28]} {[%emt 00:00:16]} a4 {[%clk 00:03:52]}
{[%emt 00:01:44]} 50. Qd2 {[%clk 00:00:23]} {[%emt 00:00:10]} Bxd3 {[%clk
00:03:43]} {[%emt 00:00:15]} 51. Bxd3 {[%clk 00:00:27]} Qxd4 {[%clk 00:03:42]}
{[%emt 00:00:06]} 52. Rd1 {[%clk 00:00:13]} {[%emt 00:00:19]} Rxd3 {[%clk
00:03:44]} {[%emt 00:00:04]} 53. Qxd3 {[%clk 00:00:14]} {[%emt 00:00:04]} Qxf4#
{[%emt 00:00:02]} 0-1

[Event "MČR juniorů a juniorek v rapid šachu 2023"]
[Site "Czech Republic"]
[Date "2023.09.23"]
[Round "6.9"]
[White "Slaby, Matej"]
[Black "Svacina, Tobias"]
[Result "1-0"]
[TimeControl "20 min + 5 sec per move"]
[WhiteFideId "23734876"]
[BlackFideId "385859"]
[WhiteElo "1922"]
[BlackElo "1782"]

1. e4 {[%clk 00:20:07]} {[%emt 00:00:02]} e5 {[%clk 00:20:06]} {[%emt
00:00:05]} 2. Bc4 {[%clk 00:20:10]} {[%emt 00:00:02]} Nf6 {[%clk 00:20:06]}
{[%emt 00:00:06]} 3. d3 {[%clk 00:20:14]} {[%emt 00:00:01]} c6 {[%clk
00:20:07]} {[%emt 00:00:04]} 4. Nf3 {[%clk 00:20:09]} {[%emt 00:00:09]} Qc7
{[%clk 00:19:51]} {[%emt 00:00:21]} 5. O-O {[%clk 00:19:31]} {[%emt 00:00:44]}
d5 {[%clk 00:19:15]} {[%emt 00:00:41]} 6. Bb3 {[%clk 00:19:32]} {[%emt
00:00:04]} Bd6 {[%clk 00:19:01]} {[%emt 00:00:19]} 7. Nc3 {[%clk 00:18:08]}
{[%emt 00:01:29]} dxe4 {[%clk 00:18:42]} {[%emt 00:00:23]} 8. dxe4 {[%clk
00:16:58]} {[%emt 00:01:15]} O-O {[%clk 00:18:43]} {[%emt 00:00:04]} 9. Bg5
{[%clk 00:16:49]} {[%emt 00:00:15]} Nbd7 {[%clk 00:18:16]} {[%emt 00:00:31]} 10.
Qe2 {[%clk 00:16:02]} {[%emt 00:00:53]} h6 {[%clk 00:17:56]} {[%emt 00:00:25]}
11. Bd2 {[%clk 00:14:40]} {[%emt 00:01:27]} Nc5 {[%clk 00:17:24]} {[%emt
00:00:37]} 12. h3 {[%clk 00:14:42]} {[%emt 00:00:04]} Be6 {[%clk 00:17:14]}
{[%emt 00:00:14]} 13. Nh4 {[%clk 00:13:38]} {[%emt 00:01:10]} Rfe8 {[%clk
00:16:22]} {[%emt 00:00:57]} 14. Bxe6 {[%clk 00:12:35]} {[%emt 00:01:08]} Nxe6
{[%clk 00:16:23]} {[%emt 00:00:04]} 15. Nf5 {[%clk 00:12:37]} {[%emt 00:00:03]}
Bf8 {[%clk 00:15:25]} {[%emt 00:01:02]} 16. Be3 {[%clk 00:11:36]} {[%emt
00:01:07]} Rad8 {[%clk 00:14:53]} {[%emt 00:00:36]} 17. Rfd1 {[%clk 00:10:52]}
{[%emt 00:00:50]} Kh7 {[%clk 00:11:09]} {[%emt 00:03:49]} 18. Qf3 {[%clk
00:09:51]} {[%emt 00:01:06]} Ng8 {[%clk 00:08:48]} {[%emt 00:02:26]} 19. a4
{[%clk 00:06:55]} {[%emt 00:03:01]} g6 {[%clk 00:06:03]} {[%emt 00:02:50]} 20.
Ng3 {[%clk 00:06:45]} {[%emt 00:00:15]} Bg7 {[%clk 00:05:38]} {[%emt 00:00:30]}
21. h4 {[%clk 00:05:31]} {[%emt 00:01:20]} Nd4 {[%clk 00:03:52]} {[%emt
00:01:51]} 22. Bxd4 {[%clk 00:05:28]} {[%emt 00:00:08]} exd4 {[%clk 00:03:55]}
{[%emt 00:00:01]} 23. Nce2 {[%clk 00:05:31]} h5 {[%clk 00:03:40]} {[%emt
00:00:21]} 24. Rd2 {[%clk 00:04:18]} {[%emt 00:01:18]} c5 {[%clk 00:03:27]}
{[%emt 00:00:18]} 25. Rad1 {[%clk 00:03:56]} {[%emt 00:00:27]} Bh6 {[%clk
00:01:34]} {[%emt 00:01:58]} 26. Rd3 {[%clk 00:03:42]} {[%emt 00:00:19]} Rd6
{[%clk 00:01:31]} {[%emt 00:00:08]} 27. Nc3 {[%clk 00:02:22]} {[%emt 00:01:25]}
Rf6 {[%clk 00:01:25]} {[%emt 00:00:11]} 28. Nd5 {[%clk 00:02:25]} {[%emt
00:00:02]} Rxf3 {[%clk 00:01:23]} {[%emt 00:00:07]} 29. Nxc7 {[%clk 00:02:28]}
{[%emt 00:00:02]} Rxd3 {[%clk 00:01:27]} 30. Rxd3 {[%clk 00:02:27]} Rc8 {[%clk
00:01:29]} {[%emt 00:00:09]} 31. Nd5 {[%clk 00:02:03]} Bg7 {[%emt 00:00:33]} 32.
Rd1 Nf6 33. Nf4 Ng4 34. Nh3 Ne5 {[%clk 00:01:30]} 35. c3 {[%clk 00:01:13]} Nc4
{[%clk 00:00:28]} {[%emt 00:03:35]} 36. cxd4 {[%clk 00:00:12]} {[%emt
00:00:03]} Nxb2 {[%emt 00:00:02]} 37. Ng5+ Kg8 38. Rd2 Bxd4 39. Ne2 Bf6 {[%clk
00:00:31]} 40. Nf3 {[%clk 00:00:17]} {[%emt 00:00:36]} Nc4 {[%clk 00:00:25]}
{[%emt 00:00:05]} 41. Rd7 {[%clk 00:00:19]} {[%emt 00:00:03]} Nb6 {[%clk
00:00:16]} {[%emt 00:00:15]} 42. Rxb7 {[%clk 00:00:21]} {[%emt 00:00:03]} Nxa4
{[%clk 00:00:20]} 43. Rxa7 {[%clk 00:00:25]} {[%emt 00:00:01]} Nb2 {[%clk
00:00:19]} {[%emt 00:00:05]} 44. e5 {[%clk 00:00:27]} {[%emt 00:00:04]} Bg7
{[%clk 00:00:23]} {[%emt 00:00:01]} 45. Ra2 {[%clk 00:00:23]} {[%emt 00:00:09]}
Nd3 {[%clk 00:00:26]} {[%emt 00:00:02]} 46. e6 {[%clk 00:00:17]} {[%emt
00:00:10]} fxe6 {[%clk 00:00:29]} {[%emt 00:00:03]} 47. Ng5 {[%clk 00:00:14]}
{[%emt 00:00:08]} c4 {[%clk 00:00:10]} {[%emt 00:00:24]} 48. Nxe6 {[%clk
00:00:12]} {[%emt 00:00:07]} c3 {[%clk 00:00:12]} {[%emt 00:00:02]} 49. Nxg7
{[%emt 00:00:06]} c2 {[%clk 00:00:15]} 50. Ne6 {[%clk 00:00:12]} {[%emt
00:00:06]} c1=Q+ {[%clk 00:00:16]} {[%emt 00:00:04]} 51. Nxc1 {[%clk 00:00:16]}
{[%emt 00:00:02]} Rxc1+ {[%clk 00:00:20]} 52. Kh2 {[%clk 00:00:20]} {[%emt
00:00:01]} Rc6 {[%clk 00:00:21]} {[%emt 00:00:04]} 53. Ng5 {[%clk 00:00:15]}
{[%emt 00:00:09]} Rf6 {[%clk 00:00:22]} {[%emt 00:00:04]} 54. Nf3 {[%clk
00:00:18]} {[%emt 00:00:03]} Kg7 {[%clk 00:00:22]} {[%emt 00:00:05]} 55. Rd2
{[%clk 00:00:21]} {[%emt 00:00:02]} Nc5 {[%clk 00:00:23]} {[%emt 00:00:04]} 56.
Ng5 {[%clk 00:00:17]} {[%emt 00:00:09]} Rf4 {[%clk 00:00:20]} {[%emt 00:00:08]}
57. g3 {[%clk 00:00:20]} {[%emt 00:00:02]} Rf5 {[%clk 00:00:22]} {[%emt
00:00:03]} 58. Rc2 {[%clk 00:00:19]} {[%emt 00:00:06]} Kf6 {[%clk 00:00:13]}
{[%emt 00:00:13]} 59. Rxc5 {[%clk 00:00:19]} {[%emt 00:00:05]} 1-0